bitfinex/quotes_ETHUSD_20240926
["timestamp","ask_amount","ask_price","bid_price","bid_amount"]
[1727354895228,9.15195037,2636.9,2636.8,0.0381759]
[1727354900750,17.32210207,2636.9,2636.8,0.0381759]
[1727354901434,17.87210207,2636.9,2636.8,0.0381759]
[1727354902968,17.82448314,2636.9,2636.8,0.0381759]
[1727354905616,18.2210376,2636.9,2636.8,0.0381759]
[1727354906788,14.0975596,2636.9,2636.8,0.0381759]
[1727354906991,10.0508859,2636.9,2636.8,0.0381759]
[1727354907280,3.79233,2636.9,2636.8,0.0381759]
[1727354908489,7.34233,2636.9,2636.8,0.0381759]
[1727354908890,0.7521,2637.2,2636.9,0.6635]
[1727354908891,3.79204,2637.1,2636.9,0.6635]
[1727354909128,3.79218,2637.0,2636.9,0.6635]
[1727354910479,6.79218,2637.0,2636.9,0.6635]
[1727354912220,6.79233,2636.9,2636.8,0.0381759]
[1727354913323,8.481381,2636.9,2636.8,0.0381759]
[1727354914628,7.34233,2636.9,2636.8,0.0381759]
[1727354915826,3.0,2636.7,2635.7,3.5805755]
[1727354916146,3.0,2636.7,2635.0,3.79506]
[1727354916147,3.0,2636.7,2636.0,4.0466737]
[1727354916441,3.79215,2637.1,2636.5,4.0466737]
[1727354916442,3.0,2637.0,2636.5,4.0466737]
[1727354916938,3.0,2637.0,2636.3,4.0466737]
[1727354917142,3.0,2637.0,2636.4,0.40466737]
[1727354917902,3.79168,2637.4,2636.7,4.0466737]
[1727354918136,7.97937871,2637.6,2636.8,0.40466737]
[1727354918345,2.0,2637.8,2636.9,4.0466737]
[1727354918346,3.79114,2637.8,2636.9,4.0466737]
[1727354918506,4.249794,2637.8,2636.9,4.87106181]
[1727354918712,3.79133,2637.6,2636.9,4.0466737]
[1727354919030,4.249794,2637.8,2636.9,4.0466737]
[1727354919235,0.458654,2637.8,2637.1,4.0466737]
[1727354919406,4.249694,2637.8,2637.1,4.0466737]
[1727354920038,4.249694,2637.8,2636.9,0.44513411]
[1727354920039,4.249694,2637.8,2636.9,4.49180781]
[1727354920209,4.249694,2637.8,2637.0,0.44918078]
[1727354920210,3.79119,2637.7,2637.0,0.44918078]
[1727354920416,3.79134,2637.6,2636.9,4.49180781]
[1727354920617,3.79134,2637.6,2636.9,0.44513411]
[1727354920821,11.040914,2637.8,2636.9,0.44513411]
[1727354921153,4.1370654,2637.7,2636.9,0.44513411]
[1727354921311,3.0,2637.6,2636.9,0.44513411]
[1727354921512,3.0,2637.8,2636.9,4.49180781]
[1727354921705,7.849237,2637.8,2636.9,4.49180781]
[1727354921909,3.0,2637.8,2636.9,4.49180781]
[1727354922163,3.0,2637.8,2637.1,4.0466737]
[1727354922758,3.0,2638.0,2637.1,4.0466737]
[1727354922974,6.79082,2638.0,2637.1,4.0466737]
[1727354923248,7.96816465,2638.0,2637.1,4.87507148]
[1727354923754,4.17734465,2638.0,2637.3,4.0466737]
[1727354924051,7.96823465,2638.0,2637.1,4.87507148]
[1727354924263,3.0,2637.7,2637.1,4.87507148]
[1727354924555,3.79135,2637.6,2636.9,0.44513411]
[1727354925057,3.0,2637.7,2636.9,0.44513411]
[1727354925058,3.0,2637.7,2636.9,4.49180781]
[1727354925249,3.79134,2637.6,2636.9,4.49180781]
[1727354925755,3.79144,2637.6,2636.7,4.0466737]
[1727354925916,3.79156,2637.5,2636.7,4.0466737]
[1727354926111,0.379156,2637.4,2636.7,4.0466737]
[1727354927755,0.379156,2637.4,2636.9,4.0466737]
[1727354927911,0.68454945,2637.9,2637.2,4.0466737]
[1727354927912,3.0,2637.6,2637.2,4.0466737]
[1727354928110,3.0,2637.8,2637.2,4.0466737]
[1727354928351,3.79128,2637.7,2637.0,4.0466737]
[1727354928551,3.0,2637.6,2637.0,4.0466737]
[1727354928855,4.058239,2637.6,2636.8,4.0466737]
[1727354929158,4.058239,2637.6,2637.0,4.0466737]
[1727354929159,1.058239,2637.6,2637.0,4.0466737]
[1727354929310,3.0,2637.7,2637.0,4.0466737]
[1727354929515,3.0,2637.9,2637.2,4.0466737]
[1727354929712,3.0,2637.9,2637.2,4.45134107]
[1727354929916,3.0,2637.9,2637.2,4.0466737]
[1727354930461,3.0,2638.1,2637.4,4.0466737]
[1727354930818,3.0,2637.9,2637.4,4.0466737]
[1727354931018,7.09092,2637.9,2637.2,4.0466737]
[1727354931227,3.7911,2637.8,2637.0,4.0466737]
[1727354931514,3.7911,2637.8,2637.1,0.40466737]
[1727354931795,3.7911,2637.8,2637.0,4.0466737]
[1727354932118,3.79119,2637.7,2637.0,4.0466737]
[1727354932316,3.79104,2637.8,2637.0,4.0466737]
[1727354932514,1.165506,2637.7,2636.8,4.0466737]
[1727354932718,3.0,2637.6,2636.8,4.0466737]
[1727354933458,6.79139,2637.6,2637.0,4.0466737]
[1727354933622,7.904656,2637.6,2637.0,4.0466737]
[1727354933818,4.113266,2637.6,2637.0,4.0466737]
[1727354934141,4.113266,2637.6,2636.8,3.79239]
[1727354934142,3.0,2637.8,2637.2,4.0466737]
[1727354935241,3.0,2637.6,2637.0,4.0466737]
[1727354935589,0.7731,2637.9,2637.0,7.8388237]
[1727354935795,0.456402,2637.8,2637.0,7.8388237]
[1727354936152,0.456402,2637.8,2637.2,4.0466737]
[1727354936476,3.79077,2638.0,2637.2,4.0466737]
[1727354937002,3.0,2637.9,2637.2,4.0466737]
[1727354939454,3.39653651,2638.2,2637.2,4.0466737]
[1727354939665,3.39653651,2638.2,2637.0,4.0466737]
[1727354939666,3.0,2637.7,2637.0,4.0466737]
[1727354940002,3.79137,2637.6,2637.0,4.0466737]
[1727354940145,7.57751,2637.9,2637.0,7.8388437]
[1727354940344,3.0,2637.7,2637.2,4.0466737]
[1727354940887,6.79128,2637.7,2637.0,4.0466737]
[1727354941252,3.79134,2637.6,2637.0,4.0466737]
[1727354941596,3.79134,2637.6,2636.8,4.0466737]
[1727354941597,4.470714,2637.5,2636.8,4.0466737]
[1727354942245,0.679134,2637.5,2637.0,4.0466737]
[1727354942450,3.791,2637.9,2637.2,4.0466737]
[1727354942451,6.79103,2637.8,2637.2,4.0466737]
[1727354942650,3.79127,2637.7,2637.2,4.0466737]
[1727354942887,3.679127,2637.6,2637.2,4.0466737]
[1727354943089,3.0,2637.6,2637.2,4.0466737]
[1727354944001,3.79153,2637.5,2636.9,4.0466737]
[1727354944170,3.0,2637.6,2636.9,4.0466737]
[1727354944687,6.79134,2637.6,2636.9,4.0466737]
[1727354944854,6.79106,2637.8,2637.1,4.0466737]
[1727354945281,6.79106,2637.8,2637.3,4.0466737]
[1727354945690,3.0,2637.6,2637.3,4.0466737]
[1727354945996,3.0,2637.6,2636.1,3.79347]
[1727354945997,3.79162,2637.4,2637.0,4.0466737]
[1727354946204,3.79149,2637.5,2637.0,4.0466737]
[1727354946559,3.7866,2637.4,2637.0,4.0466737]
[1727354946861,3.0,2637.4,2637.0,4.0466737]
[1727354947061,3.679149,2637.4,2637.0,4.0466737]
[1727354947571,7.470859,2637.4,2637.0,4.0466737]
[1727354947792,3.0,2637.2,2636.7,4.0466737]
[1727354948656,6.79194,2637.2,2636.7,4.0466737]
[1727354948853,7.9182319,2637.2,2636.7,4.0466737]
[1727354949083,8.7428319,2637.2,2636.7,4.0466737]
[1727354949769,4.9508919,2637.2,2636.7,4.0466737]
[1727354950374,3.0,2637.2,2636.7,4.0466737]
[1727354950595,3.0,2637.3,2636.7,4.0466737]
[1727354950998,3.0,2637.6,2637.2,4.0466737]
[1727354951197,4.61586,2637.7,2637.2,4.0466737]
[1727354951198,3.79126,2637.7,2637.2,4.0466737]
[1727354951589,3.79105,2637.8,2637.2,4.0466737]
[1727354951794,4.252604,2637.8,2637.2,4.0466737]
[1727354952087,3.79127,2637.7,2637.2,4.0466737]
[1727354952622,3.0,2637.6,2637.2,4.0466737]
[1727354953299,3.79127,2637.7,2637.4,4.0466737]
[1727354953506,3.79127,2637.7,2637.2,4.0466737]
[1727354956893,3.79135,2637.6,2637.2,4.0466737]
[1727354957622,3.79155,2637.5,2637.0,4.0466737]
[1727354957821,3.79191,2637.2,2636.8,4.0466737]
[1727354958029,3.79177,2637.3,2636.8,4.0466737]
[1727354958194,4.470934,2637.3,2636.8,4.0466737]
[1727354958720,8.262824,2637.3,2636.8,4.0466737]
[1727354959019,4.470934,2637.3,2636.8,4.0466737]
[1727354959797,8.262804,2637.3,2636.8,4.0466737]
[1727354960032,4.470934,2637.3,2636.8,4.0466737]
[1727354960319,8.262764,2637.3,2636.8,4.0466737]
[1727354960524,3.79224,2637.0,2636.6,4.0466737]
[1727354960732,3.0,2637.0,2636.6,4.0466737]
[1727354961410,1.6450764,2637.2,2636.4,4.0466737]
[1727354961578,3.79241,2636.9,2636.4,4.0466737]
[1727354962184,3.79233,2636.9,2636.4,4.0466737]
[1727354962384,6.7922,2637.0,2636.4,4.0466737]
[1727354962621,3.79241,2636.9,2636.6,4.0466737]
[1727354963431,0.679241,2636.8,2636.6,4.0466737]
[1727354965022,4.471731,2636.8,2636.6,4.0466737]
[1727354965234,3.79269,2636.7,2636.2,4.0466737]
[1727354965725,3.0,2636.7,2636.4,4.0466737]
[1727354966290,6.79263,2636.7,2636.4,4.0466737]
[1727354969490,6.79263,2636.7,2636.2,4.0466737]
[1727354969687,3.79276,2636.6,2636.2,4.0466737]
[1727354970102,3.79296,2636.5,2636.2,4.0466737]
[1727354970290,3.759373,2636.7,2636.2,4.0466737]
[1727354970291,3.79277,2636.6,2636.2,4.0466737]
[1727354970487,0.7552143,2636.5,2636.2,4.0466737]
[1727354970733,3.79277,2636.6,2636.2,4.0466737]
[1727354971531,3.0,2636.5,2636.2,4.0466737]
[1727354973140,3.759373,2636.7,2636.4,4.0466737]
[1727354973323,6.79262,2636.7,2636.4,4.0466737]
[1727354973648,3.0,2636.7,2636.4,4.0466737]
[1727354974069,3.7936,2637.0,2636.6,4.0466737]
[1727354974210,3.0,2636.8,2636.4,4.0466737]
[1727354975612,6.79248,2636.8,2636.4,4.0466737]
[1727354976814,6.79234,2636.9,2636.4,4.0466737]
[1727354981163,3.79249,2636.8,2636.4,4.0466737]
[1727354983022,3.79262,2636.7,2635.9,4.173043]
[1727354983227,4.59332,2636.5,2636.1,4.0466737]
[1727354983427,3.79305,2636.4,2636.1,4.0466737]
[1727354983777,4.59331,2636.5,2636.1,4.0466737]
[1727354984264,3.79291,2636.5,2636.1,4.0466737]
[1727354985162,4.62033,2636.7,2636.1,4.0466737]
[1727354985465,3.79262,2636.7,2636.4,4.0466737]
[1727354988432,3.79262,2636.7,2636.1,4.0466737]
[1727354988433,3.7929,2636.5,2636.1,4.0466737]
[1727354989363,7.56242,2636.6,2636.1,4.0466737]
[1727354990483,3.7925,2636.8,2636.1,4.45134107]
[1727354990773,3.7925,2636.8,2636.4,4.0466737]
[1727354991071,6.79229,2637.0,2636.4,4.0466737]
[1727354991272,3.0,2636.8,2636.4,4.0466737]
[1727354991733,6.79249,2636.8,2636.4,4.0466737]
[1727354994435,3.79266,2636.7,2636.4,4.0466737]
[1727354996366,3.79285,2636.6,2636.1,4.0466737]
[1727354996554,3.793,2636.5,2636.1,4.0466737]
[1727354997589,3.7935,2636.1,2635.2,0.0381759]
[1727354997789,3.7935,2636.1,2635.5,4.0466737]
[1727354998598,3.7935,2636.1,2635.7,4.0466737]
[1727354999257,4.630096,2636.1,2635.7,4.0466737]
[1727355001816,3.0,2636.4,2635.9,4.0466737]
[1727355002099,6.79307,2636.4,2635.9,4.0466737]
[1727355002307,1.134897,2636.3,2635.9,4.0466737]
[1727355002460,3.0,2636.2,2635.9,4.0466737]
[1727355003913,6.79342,2636.2,2635.9,4.0466737]
[1727355005175,3.7935,2636.1,2635.9,4.0466737]
[1727355005380,3.0,2636.2,2635.9,4.0466737]
[1727355005873,6.79344,2636.2,2635.9,4.0466737]
[1727355006078,7.852105,2636.2,2635.9,4.0466737]
[1727355008663,11.645555,2636.2,2635.9,4.0466737]
[1727355008993,7.852105,2636.2,2635.9,4.0466737]
[1727355009403,3.7935,2636.1,2635.9,4.0466737]
[1727355009695,3.79362,2636.0,2635.9,4.0466737]
[1727355010296,3.79362,2636.0,2635.7,4.0466737]
[1727355013232,3.7935,2636.1,2635.9,4.0466737]
[1727355013401,3.0,2636.2,2635.9,4.0466737]
[1727355013597,3.0,2636.2,2636.1,4.0466737]
[1727355014195,6.79333,2636.2,2636.1,4.0466737]
[1727355014465,6.79333,2636.2,2636.1,1.86892043]
[1727355014618,7.930024,2636.2,2636.1,1.86892043]
[1727355014799,4.136694,2636.2,2635.2,0.0381759]
[1727355015001,3.79388,2635.9,2635.6,1.86892043]
[1727355015242,3.79388,2635.9,2635.8,1.86892043]
[1727355015406,7.58204,2636.1,2635.8,1.86892043]
[1727355015740,7.96089,2636.1,2636.0,1.86892043]
[1727355016298,7.96089,2636.1,2635.2,0.0381759]
[1727355016299,3.79389,2635.9,2635.8,1.86892043]
[1727355016535,4.969379,2635.9,2635.8,1.86892043]
[1727355017045,3.79395,2635.8,2635.7,1.86892043]
[1727355018318,3.79379,2635.9,2635.7,1.86892043]
[1727355018537,4.55001,2636.5,2635.8,3.86971869]
[1727355018721,4.55001,2636.5,2636.4,1.86892043]
[1727355018722,3.793,2636.5,2636.4,1.86892043]
[1727355019046,4.54974,2636.7,2636.4,1.86892043]
[1727355019047,3.79276,2636.6,2636.4,1.86892043]
[1727355019360,4.62701,2636.6,2636.4,1.86892043]
[1727355019513,0.83425,2636.6,2636.4,1.86892043]
[1727355019710,3.79277,2636.6,2636.4,1.86892043]
[1727355020144,3.0,2636.6,2636.4,1.86892043]
[1727355020311,3.0,2636.6,2636.3,4.0484723]
[1727355020750,3.79297,2636.5,2636.3,4.0484723]
[1727355021048,3.79297,2636.5,2635.8,3.79381]
[1727355021049,0.679297,2636.4,2636.1,4.0484723]
[1727355021263,3.79309,2636.4,2636.1,4.0484723]
[1727355021547,4.61997,2636.5,2636.1,4.0484723]
[1727355022253,3.79297,2636.5,2636.1,4.0484723]
[1727355023042,3.0,2636.6,2636.1,4.0484723]
[1727355023237,3.0,2636.6,2636.3,4.0484723]
[1727355023751,3.79293,2636.5,2636.1,4.0484723]
[1727355023912,3.79321,2636.3,2635.9,4.0484723]
[1727355024308,3.79321,2636.3,2636.1,4.0484723]
[1727355024714,7.5433,2636.6,2636.1,4.0484723]
[1727355025064,3.0,2636.8,2636.5,4.0484723]
[1727355025230,3.0,2636.8,2636.7,4.0484723]
[1727355025555,4.54269,2637.0,2636.7,4.0484723]
[1727355025712,4.996953,2637.0,2636.7,4.0484723]
[1727355025912,1.204763,2637.0,2636.7,4.0484723]
[1727355026117,4.996973,2637.0,2636.7,4.0484723]
[1727355026527,4.204763,2637.0,2636.7,4.0484723]
[1727355026730,4.5920793,2636.9,2636.7,4.0484723]
[1727355027625,4.5920793,2636.9,2636.5,4.0484723]
[1727355027952,4.5920793,2636.9,2635.5,7.0484723]
[1727355027953,3.79285,2636.6,2636.3,4.0484723]
[1727355028154,4.551392,2636.6,2636.3,4.0484723]
[1727355028448,8.344242,2636.6,2636.3,4.0484723]
[1727355028651,4.551392,2636.6,2636.3,4.0484723]
[1727355030252,4.5920393,2636.9,2636.1,3.86933124]
[1727355030421,3.0,2636.8,2636.5,4.0484723]
[1727355030619,6.79248,2636.8,2636.5,4.0484723]
[1727355030847,3.0,2636.8,2636.5,4.0484723]
[1727355031452,6.79257,2636.8,2636.5,4.0484723]
[1727355032115,7.9715383,2636.8,2636.6,0.06422162]
[1727355032348,3.79234,2636.9,2636.6,0.06422162]
[1727355033061,3.79261,2636.8,2636.3,4.0484723]
[1727355033212,3.79261,2636.8,2636.7,0.06580663]
[1727355033417,3.79261,2636.8,2636.3,4.0484723]
[1727355033652,3.79262,2636.7,2636.3,4.0484723]
[1727355034942,3.79249,2636.8,2636.3,4.0484723]
[1727355035957,3.79276,2636.6,2636.3,4.0484723]
[1727355036162,7.58593,2636.5,2636.0,4.0484723]
[1727355036613,3.79305,2636.4,2636.0,4.0484723]
[1727355038233,3.79291,2636.5,2636.0,4.0484723]
[1727355038432,7.58594,2636.5,2636.0,4.0484723]
[1727355039158,3.79305,2636.4,2636.0,4.0484723]
[1727355039321,3.79321,2636.3,2636.0,4.0484723]
[1727355039519,3.79305,2636.4,2636.0,4.0484723]
[1727355039965,3.79343,2636.2,2635.8,4.0484723]
[1727355040165,4.248463,2636.2,2635.8,4.0484723]
[1727355041673,3.79351,2636.1,2635.8,4.0484723]
[1727355042050,4.248463,2636.2,2635.8,4.0484723]
[1727355042360,3.7935,2636.1,2635.8,4.0484723]
[1727355042744,3.79383,2635.9,2635.6,4.0484723]
[1727355043591,3.79383,2635.9,2635.4,3.79448]
[1727355043592,3.79393,2635.8,2635.4,4.0484723]
[1727355043878,7.58794,2635.8,2635.4,4.0484723]
[1727355044061,3.79393,2635.8,2635.4,4.0484723]
[1727355044374,7.58792,2635.8,2635.4,4.0484723]
[1727355044536,7.58792,2635.8,2635.2,3.8328759]
[1727355044537,0.767,2635.6,2635.2,4.0866482]
[1727355044739,4.56133,2635.6,2635.2,4.0866482]
[1727355044974,4.56133,2635.6,2635.3,0.06745808]
[1727355045375,4.56133,2635.6,2635.2,4.0866482]
[1727355045743,4.56133,2635.6,2635.3,0.06745808]
[1727355045943,5.12489526,2635.6,2635.2,4.0866482]
[1727355046373,5.12489526,2635.6,2635.3,0.06745808]
[1727355046560,5.12489526,2635.6,2635.2,4.0866482]
[1727355046756,5.12489526,2635.6,2635.3,0.06745808]
[1727355046942,5.12489526,2635.6,2635.2,4.0866482]
[1727355047143,5.12489526,2635.6,2635.3,0.06745808]
[1727355047439,5.12489526,2635.6,2635.2,4.0866482]
[1727355047640,8.3556,2635.6,2635.4,4.11583625]
[1727355047878,3.79434,2635.5,2635.4,4.0484723]
[1727355048392,3.79434,2635.5,2635.2,4.0866482]
[1727355048890,6.7938,2635.9,2635.4,4.0484723]
[1727355048891,4.61014,2635.8,2635.4,4.0484723]
[1727355049090,6.79413,2635.7,2635.6,4.0484723]
[1727355049252,3.0,2635.7,2635.6,4.0484723]
[1727355049977,6.79405,2635.7,2635.6,4.0484723]
[1727355050176,3.0,2635.7,2635.6,4.0484723]
[1727355050348,4.61014,2635.8,2635.6,4.0484723]
[1727355050548,3.79405,2635.7,2635.6,4.0484723]
[1727355051385,3.79392,2635.8,2635.6,4.0484723]
[1727355051590,7.59853,2636.0,2635.6,4.0484723]
[1727355051795,8.39164,2636.2,2635.9,4.0484723]
[1727355052092,4.59822,2636.2,2636.1,4.0484723]
[1727355052590,3.79316,2636.4,2636.1,4.0484723]
[1727355052591,3.79315,2636.4,2636.1,4.0484723]
[1727355052802,3.79315,2636.4,2636.3,4.0484723]
[1727355053963,3.79315,2636.4,2636.1,4.0484723]
[1727355054169,0.801,2636.7,2636.3,4.0484723]
[1727355054356,3.79289,2636.6,2636.5,4.0484723]
[1727355054554,4.5937,2636.7,2636.5,4.0484723]
[1727355055673,4.5937,2636.7,2636.3,4.0484723]
[1727355056092,3.79285,2636.6,2636.3,4.0484723]
[1727355056709,3.79291,2636.5,2636.3,4.0484723]
[1727355057411,4.5937,2636.7,2636.3,4.0484723]
[1727355057616,7.56982,2636.9,2636.5,4.0484723]
[1727355057910,7.56982,2636.9,2636.7,4.0484723]
[1727355058407,11.36225,2636.9,2636.7,4.0484723]
[1727355058609,6.79247,2636.8,2636.7,4.0484723]
[1727355058911,6.79271,2636.7,2636.5,4.0484723]
[1727355059685,10.58542,2636.7,2636.5,4.0484723]
[1727355060095,10.58542,2636.7,2636.6,0.06681609]
[1727355060311,6.79271,2636.7,2636.6,0.06681609]
[1727355061013,7.63061048,2636.7,2636.6,0.06681609]
[1727355061366,7.63061048,2636.7,2636.3,4.0484723]
[1727355061578,7.58602,2636.5,2636.4,0.06700418]
[1727355061809,3.79301,2636.5,2636.4,0.06700418]
[1727355062376,1.14236905,2636.5,2636.4,0.06700418]
[1727355062577,3.79278,2636.6,2636.3,4.0484723]
[1727355062890,3.7929,2636.5,2636.4,0.06653615]
[1727355063286,3.79305,2636.4,2636.3,4.0484723]
[1727355063610,3.79305,2636.4,2636.3,4.11510251]
[1727355063975,3.79292,2636.5,2636.3,4.11510251]
[1727355065694,4.61295,2636.4,2636.3,4.11510251]
[1727355066379,3.79305,2636.4,2636.3,4.11510251]
[1727355067393,3.7929,2636.5,2636.3,4.11510251]
[1727355067601,4.56772,2637.0,2636.3,4.11510251]
[1727355067931,3.0,2636.7,2636.6,4.0484723]
[1727355068129,3.7922,2637.0,2636.6,4.0484723]
[1727355068282,3.7922,2637.0,2636.6,4.11452721]
[1727355068483,3.79233,2636.9,2636.6,0.06605491]
[1727355068884,3.79233,2636.9,2636.4,3.79304]
[1727355069131,3.79233,2636.9,2636.7,0.0659146]
[1727355069284,3.79233,2636.9,2636.4,3.79304]
[1727355069626,3.79233,2636.9,2636.3,4.0484723]
[1727355069627,3.79253,2636.8,2636.3,4.0484723]
[1727355069787,3.79233,2636.9,2636.3,8.62576153]
[1727355069788,3.79234,2636.9,2636.3,8.62576153]
[1727355069986,7.58475,2636.9,2636.4,0.06612475]
[1727355070287,0.7914,2637.4,2636.8,4.0484723]
[1727355070514,2.0,2638.3,2637.0,4.0484723]
[1727355070515,3.79142,2637.6,2637.0,4.0484723]
[1727355070737,3.79142,2637.6,2637.2,4.0484723]
[1727355070912,3.79142,2637.6,2637.0,3.79212]
[1727355070913,7.58287,2637.6,2637.1,0.06546655]
[1727355071105,7.58287,2637.6,2637.3,0.06527856]
[1727355071310,3.79142,2637.6,2637.2,0.06537255]
[1727355071506,3.79142,2637.6,2637.4,0.06518458]
[1727355071734,3.79142,2637.6,2637.1,0.07583401]
[1727355071735,3.79142,2637.6,2637.3,0.06527856]
[1727355072050,6.79142,2637.6,2637.4,0.06518458]
[1727355072395,6.79142,2637.6,2637.0,7.8405223]
[1727355072593,10.58288,2637.6,2637.1,0.0650039]
[1727355072834,6.79142,2637.6,2637.1,0.0650039]
[1727355073043,3.0,2637.7,2637.2,7.8403023]
[1727355073343,3.0,2637.7,2637.4,4.0484723]
[1727355073693,3.0,2637.7,2637.5,0.06462794]
[1727355073694,6.79131,2637.7,2637.5,0.06462794]
[1727355073895,3.79132,2637.6,2637.5,0.06462794]
[1727355074237,3.79132,2637.6,2637.5,0.06447378]
[1727355074395,6.79124,2637.7,2637.5,0.06447378]
[1727355074621,6.79124,2637.7,2637.1,7.8405023]
[1727355074822,3.0,2637.7,2637.6,0.0643798]
[1727355075130,3.0,2637.7,2637.4,4.0484723]
[1727355075363,3.0,2637.7,2637.6,0.0643798]
[1727355075576,3.0,2637.7,2637.5,0.06447378]
[1727355075726,3.0,2637.7,2637.6,0.0643798]
[1727355076125,3.79073,2638.1,2637.6,4.0484723]
[1727355076483,3.79083,2638.0,2637.6,0.0643798]
[1727355076767,3.79073,2638.1,2637.6,0.0643798]
[1727355076932,3.79073,2638.1,2637.4,7.8399823]
[1727355077138,0.7958,2638.2,2637.7,0.06413171]
[1727355077342,4.58634,2638.2,2637.6,7.8397123]
[1727355077669,4.58634,2638.2,2637.7,0.06413171]
[1727355078479,3.79084,2638.0,2637.3,3.79165]
[1727355078639,3.79084,2638.0,2637.8,0.06403775]
[1727355078844,7.58637,2638.2,2637.5,3.79144]
[1727355079052,3.79063,2638.1,2637.9,0.0639438]
[1727355079251,4.928315,2638.1,2637.5,3.79144]
[1727355079582,3.79063,2638.1,2638.0,0.06384986]
[1727355079754,7.58131,2638.1,2637.5,3.79144]
[1727355079957,3.79063,2638.1,2638.0,0.06384986]
[1727355080147,3.79089,2637.9,2637.3,3.79167]
[1727355080345,3.79089,2637.9,2637.3,7.58334]
[1727355081052,3.79124,2637.7,2637.1,3.79196]
[1727355081252,3.79144,2637.6,2637.0,7.58426]
[1727355081467,3.79144,2637.6,2637.0,3.79211]
[1727355081468,4.926008,2637.6,2637.0,3.79211]
[1727355081666,3.79148,2637.5,2637.0,3.79211]
[1727355082814,1.134568,2637.6,2637.0,3.79211]
[1727355083018,4.925968,2637.6,2637.0,3.79211]
[1727355083382,3.79124,2637.7,2637.1,3.79196]
[1727355084122,7.53569598,2637.7,2637.1,3.79196]
[1727355084284,3.74437598,2637.7,2637.1,3.79196]
[1727355084816,3.74437598,2637.7,2637.2,3.79188]
[1727355085382,3.74437598,2637.7,2637.2,7.58371]
[1727355085723,3.74437598,2637.7,2637.2,3.79183]
[1727355086017,3.74437598,2637.7,2637.2,7.58365]
[1727355086232,3.74437598,2637.7,2637.2,3.79182]
[1727355086374,3.763,2637.8,2637.3,3.79175]
[1727355086375,7.55404,2637.8,2637.3,3.79175]
[1727355086576,3.763,2637.8,2637.3,3.79175]
[1727355086776,7.55411,2637.8,2637.3,3.79175]
[1727355087995,0.763,2637.8,2637.4,3.79151]
[1727355088204,3.79064,2638.1,2637.5,3.79145]
[1727355088602,4.60658,2638.2,2637.5,3.79145]
[1727355088923,4.60658,2638.2,2637.4,4.0484723]
[1727355088924,0.8161,2638.2,2637.6,8.36645223]
[1727355089214,3.79076,2638.0,2637.6,0.78399223]
[1727355089374,3.79076,2638.0,2637.5,3.79142]
[1727355089576,7.58161,2638.0,2637.5,3.79142]
[1727355089802,7.0866482,2638.4,2637.3,0.50430982]
[1727355090051,0.8016,2637.8,2637.4,0.06389473]
[1727355090346,4.59265,2637.8,2637.4,3.85550473]
[1727355090550,8.38381,2637.8,2637.4,0.46518148]
[1727355090713,4.59264,2637.8,2637.5,0.06374426]
[1727355091129,4.59264,2637.8,2637.3,3.79174]
[1727355091328,4.59264,2637.8,2637.6,0.06365029]
[1727355091542,4.59264,2637.8,2637.3,3.79174]
[1727355091719,4.59264,2637.8,2637.7,0.06355632]
[1727355091915,4.59264,2637.8,2637.3,3.79174]
[1727355091916,0.8016,2637.8,2637.3,3.79174]
[1727355092115,3.79102,2637.9,2637.7,0.06355632]
[1727355092116,3.0,2637.9,2637.7,0.06355632]
[1727355092415,3.0,2637.9,2637.8,0.06346237]
[1727355092747,3.0,2637.9,2637.5,4.549704]
[1727355093043,6.79089,2637.9,2637.5,4.549704]
[1727355093240,6.79089,2637.9,2637.6,0.06365029]
[1727355093605,6.79089,2637.9,2637.6,0.52498572]
[1727355094040,3.79107,2637.8,2637.6,0.06365029]
[1727355094242,4.55377,2637.8,2637.6,0.06365029]
[1727355094640,4.55377,2637.8,2637.3,3.79164]
[1727355094846,4.55377,2637.8,2637.7,0.06355632]
[1727355095032,0.7627,2637.8,2637.4,3.7916]
[1727355095347,0.7627,2637.8,2637.7,0.06355632]
[1727355095649,0.7627,2637.8,2637.7,0.06344332]
[1727355096044,0.7627,2637.8,2637.4,3.7916]
[1727355096354,0.7627,2637.8,2637.7,0.06344332]
[1727355096509,0.7627,2637.8,2637.4,4.67545051]
[1727355096709,0.7627,2637.8,2637.7,0.06344332]
[1727355096948,0.7627,2637.8,2637.4,4.67545051]
[1727355097121,0.7627,2637.8,2637.7,0.06344332]
[1727355097329,0.7627,2637.8,2637.4,4.67545051]
[1727355097650,0.7627,2637.8,2637.5,0.51342455]
[1727355097953,0.7627,2637.8,2637.5,0.57705581]
[1727355099146,3.79092,2637.9,2637.5,0.57705581]
[1727355099360,7.61557,2638.0,2637.5,4.36848581]
[1727355099651,7.61557,2638.0,2637.6,4.69570363]
[1727355099817,6.79077,2638.0,2637.6,4.69570363]
[1727355100011,6.79077,2638.0,2637.7,0.06344332]
[1727355100626,3.0,2638.0,2637.7,0.06344332]
[1727355100861,3.7909,2637.9,2637.7,0.06344332]
[1727355101161,3.79103,2637.8,2637.7,0.06344332]
[1727355101315,3.7909,2637.9,2637.3,3.79173]
[1727355101516,3.79104,2637.8,2637.7,0.06344332]
[1727355101735,3.79104,2637.8,2637.3,4.550082]
[1727355102054,3.0,2638.0,2637.4,3.79154]
[1727355102222,6.79075,2638.0,2637.5,3.79139]
[1727355102429,3.7904,2638.3,2637.7,3.7911]
[1727355102616,3.7904,2638.3,2637.8,3.93008123]
[1727355102816,0.8287759,2638.4,2638.0,3.79066]
[1727355102817,0.0381759,2638.4,2638.0,3.79066]
[1727355103011,0.0381759,2638.4,2638.1,0.51801489]
[1727355103255,0.0381759,2638.4,2638.2,7.8388023]
[1727355103572,0.0381759,2638.4,2638.2,3.79033]
[1727355103853,0.0381759,2638.4,2638.3,0.06294131]
[1727355105545,0.0381759,2638.4,2638.1,4.169596]
[1727355105784,0.0381759,2638.4,2638.3,0.06275131]
[1727355105966,0.0381759,2638.4,2638.2,0.85887083]
[1727355106156,0.0381759,2638.4,2638.3,0.06275131]
[1727355106867,3.8283459,2638.4,2638.3,0.06275131]
[1727355107384,3.8283459,2638.4,2638.0,3.79075]